bitfinex-derivatives/quotes_ETHF0:USTF0_20250909
["timestamp","ask_amount","ask_price","bid_price","bid_amount"]
[1757416128268,0.6918,4353.2,4353.1,0.4176]
[1757416128470,0.2033,4353.2,4353.1,0.4176]
[1757416128674,0.2033,4353.2,4353.1,0.7409]
[1757416129375,0.6918,4353.6,4353.5,0.8589]
[1757416130770,0.6918,4353.6,4353.5,0.7409]
[1757416132682,0.6918,4353.6,4353.5,0.8589]
[1757416133278,0.3992,4353.6,4353.5,0.8589]
[1757416137590,0.2033,4354.2,4354.1,0.4176]
[1757416137790,0.2033,4354.2,4354.1,0.7409]
[1757416137791,0.70649367,4354.2,4354.1,0.7409]
[1757416139483,0.50319367,4354.2,4354.1,0.7409]
[1757416141191,0.70649367,4354.2,4354.1,0.7409]
[1757416142991,0.50319367,4354.2,4354.1,0.7409]
[1757416147094,0.4959,4355.1,4355.0,0.8589]
[1757416149089,0.6918,4355.1,4355.0,0.7409]
[1757416150385,0.2033,4354.5,4354.4,3.7458]
[1757416150593,0.8207,4354.5,4354.4,0.7409]
[1757416150993,0.8207,4354.5,4354.1,0.3233]
[1757416151193,3.607,4354.2,4354.1,0.538]
[1757416151398,3.8996,4354.2,4354.1,0.538]
[1757416155296,3.8996,4354.2,4353.2,3.2078]
[1757416155497,3.8996,4354.2,4353.6,0.3233]
[1757416158397,3.8996,4354.2,4354.1,0.7373]
[1757416158698,0.4959,4354.2,4354.1,0.7373]
[1757416158897,0.70564067,4354.2,4354.1,0.7373]
[1757416159095,1.00784067,4354.2,4354.1,0.7373]
[1757416162105,1.20264067,4354.2,4354.1,0.7373]
[1757416164502,1.20264067,4354.2,4354.1,0.2147]
[1757416165906,1.20264067,4354.2,4354.1,0.527]
[1757416166402,1.20264067,4354.2,4354.1,0.7373]
[1757416170313,1.20264067,4354.2,4354.1,0.2147]
[1757416170514,0.3022,4354.1,4353.8,3.5201]
[1757416170812,0.6937,4353.9,4353.8,3.7173]
[1757416171013,0.6937,4353.9,4353.8,3.9276]
[1757416172205,0.6937,4353.9,4353.8,3.405]
[1757416172614,0.6937,4353.9,4353.8,3.7173]
[1757416172810,0.6937,4353.9,4353.5,0.3123]
[1757416173013,0.3022,4353.4,4353.3,3.2078]
[1757416173313,0.6937,4353.2,4353.1,0.7198]
[1757416174817,0.4989,4353.2,4353.1,0.7198]
[1757416176319,0.6937,4353.2,4353.1,0.7198]
[1757416176516,0.3022,4353.1,4352.9,0.3123]
[1757416176816,0.6937,4353.1,4353.0,0.1972]
[1757416177018,0.2574,4353.1,4353.0,0.6271]
[1757416177215,0.2574,4353.1,4353.0,0.8374]
[1757416180224,0.76020553,4353.1,4353.0,0.8374]
[1757416180523,0.50280553,4353.1,4353.0,0.8374]
[1757416180722,0.1967,4353.6,4353.5,0.5251]
[1757416180922,0.69954659,4353.6,4353.5,0.8374]
[1757416182014,3.3367,4354.5,4354.4,0.4075]
[1757416182015,0.6831,4354.5,4354.4,0.4075]
[1757416182223,0.89424111,4354.5,4354.4,0.7198]
[1757416182622,1.18584111,4354.5,4354.4,0.7198]
[1757416183027,1.18584111,4354.5,4354.0,3.3254]
[1757416183323,0.3915,4354.1,4354.0,3.8349]
[1757416184520,0.3915,4354.1,4353.5,0.1176]
[1757416184521,0.8942104,4354.1,4353.6,0.3123]
[1757416184824,0.6838,4353.7,4353.6,0.5095]
[1757416187432,0.89427095,4353.7,4353.6,0.7198]
[1757416187624,0.2923,4354.4,4353.7,0.3055]
[1757416187826,0.91051969,4354.3,4354.2,0.7202]
[1757416190434,1.20281969,4354.3,4354.2,0.7202]
[1757416191037,0.91051969,4354.3,4354.2,0.7202]
[1757416192137,1.20281969,4354.3,4354.2,0.7202]
[1757416195440,0.91051969,4354.3,4354.2,0.7202]
[1757416197540,1.20281969,4354.3,4354.2,0.7202]
[1757416197937,0.91051969,4354.3,4354.2,0.7202]
[1757416199141,0.70011969,4354.3,4354.2,0.7202]
[1757416199441,0.50271969,4354.3,4354.2,0.7202]
[1757416200944,0.7001,4355.3,4355.2,0.5187]
[1757416201141,1.20275018,4355.3,4355.2,0.5187]
[1757416202045,1.20275018,4355.3,4354.6,0.3055]
[1757416202338,0.7001,4354.7,4354.6,0.3055]
[1757416202540,1.20256752,4354.7,4354.6,0.5187]
[1757416205446,0.91026752,4354.7,4354.6,0.7202]
[1757416206546,1.20256752,4354.7,4354.6,0.7202]
[1757416209449,1.20256752,4354.7,4354.0,4.0453]
[1757416209450,0.4078,4354.1,4354.0,4.0453]
[1757416210548,0.91053833,4354.1,4354.0,4.0453]
[1757416210750,1.20283833,4354.1,4354.0,3.8438]
[1757416211448,1.20283833,4354.1,4354.0,0.636]
[1757416212346,1.20283833,4354.1,4354.0,0.5187]
[1757416212651,1.20283833,4354.1,4353.6,0.3055]
[1757416212844,0.4078,4353.7,4353.6,0.5187]
[1757416213045,0.4078,4353.7,4353.6,0.7202]
[1757416213352,0.91053833,4353.7,4353.6,0.7202]
[1757416213549,0.70013833,4353.7,4353.6,0.7202]
[1757416215246,0.50273833,4353.7,4353.6,0.7202]
[1757416215442,0.50273833,4354.4,4353.6,0.7202]
[1757416215646,0.70013833,4354.4,4354.3,0.4147]
[1757416215847,0.91053833,4354.4,4354.3,0.7202]
[1757416216152,1.20283833,4354.4,4354.3,0.7202]
[1757416219050,0.91053833,4354.4,4354.3,0.7202]
[1757416219256,0.50273833,4354.4,4354.3,0.7202]
[1757416219748,0.90583833,4354.4,4354.3,0.7202]
[1757416221259,1.19843833,4354.4,4354.3,0.7202]
[1757416222964,1.19843833,4354.4,4354.3,0.5187]
[1757416228159,1.19843833,4354.4,4354.3,0.3055]
[1757416230865,1.19843833,4354.4,4354.3,0.517]
[1757416234657,1.19843833,4354.4,4354.3,0.7323]
[1757416235057,1.19843833,4354.4,4354.3,0.3055]
[1757416236166,2.43322124,4354.4,4354.3,0.3055]
[1757416237560,1.19843833,4354.4,4354.3,0.3055]
[1757416237761,1.19843833,4354.4,4354.3,0.517]
[1757416237961,1.19843833,4354.4,4354.3,0.7323]
[1757416238362,0.50273833,4354.4,4354.3,0.7323]
[1757416238865,0.50345329,4354.4,4354.3,4.65646]
[1757416239062,0.52,4355.5,4355.4,0.4268]
[1757416239363,0.315,4355.9,4355.6,0.2963]
[1757416239569,0.7181,4355.9,4355.8,0.7231]
[1757416241369,3.2078,4356.1,4355.8,0.4268]
[1757416241568,3.4128,4356.1,4356.0,0.8426]
[1757416241863,0.0651,4356.5,4356.0,0.8426]
[1757416241864,3.2078,4356.6,4356.1,0.2963]
[1757416242068,3.4128,4356.6,4356.5,0.4268]
[1757416242368,3.9259,4356.6,4356.5,0.7231]
[1757416246773,3.9259,4356.6,4356.5,0.8519]
[1757416246969,3.2078,4356.6,4356.5,0.8519]
[1757416247175,0.3008,4357.0,4356.5,0.5556]
[1757416247373,0.5032,4357.0,4356.9,0.4053]
[1757416247573,0.5032,4357.0,4356.9,0.713]
[1757416247873,0.7054,4357.0,4356.9,0.713]
[1757416248969,0.8251,4357.0,4356.6,0.3077]
[1757416249376,0.8251,4357.0,4356.5,0.1288]
[1757416250272,0.7054,4356.5,4356.4,0.713]
[1757416252578,0.7054,4356.5,4355.7,3.5155]
[1757416252579,0.3008,4356.4,4355.7,3.5155]
[1757416252882,0.7054,4355.8,4355.7,0.5045]
[1757416254178,0.7054,4355.8,4355.7,0.713]
[1757416257583,3.6124,4356.2,4356.1,0.1968]
[1757416257779,3.6124,4356.2,4356.1,0.5045]
[1757416258171,3.9132,4356.2,4356.1,0.5045]
[1757416258580,3.9132,4356.2,4355.8,0.3077]
[1757416258781,3.9132,4356.2,4355.6,0.3077]
[1757416261380,0.1197,4356.5,4354.6,0.3077]
[1757416261381,0.7054,4355.3,4354.6,0.3077]
[1757416261580,0.7054,4354.7,4354.6,0.5045]
[1757416261876,0.2024,4354.2,4354.1,0.5045]
[1757416262089,0.7054,4354.2,4354.1,0.713]
[1757416262282,3.2078,4355.1,4354.1,0.713]
[1757416262483,0.1872,4354.3,4354.2,0.3077]
[1757416262685,0.3744,4354.3,4354.2,0.5045]
[1757416263180,0.3744,4354.3,4354.2,0.713]
[1757416264286,3.2078,4354.6,4354.5,0.1288]
[1757416264584,3.5822,4354.6,4354.5,0.8418]
[1757416265279,3.6987,4354.6,4354.5,0.3077]
[1757416265586,0.4909,4354.2,4354.1,0.3077]
[1757416265782,0.1165,4353.6,4353.5,3.3366]
[1757416265983,0.3744,4353.6,4353.5,3.5334]
[1757416266383,0.3744,4353.6,4353.5,3.8411]
[1757416266583,0.3744,4353.6,4353.5,4.0496]
[1757416267685,0.3744,4353.6,4353.5,3.8411]
[1757416268180,0.3744,4353.6,4353.5,4.0496]
[1757416271287,0.1872,4353.6,4353.5,4.0496]
[1757416271687,3.2078,4354.6,4353.5,4.0496]
[1757416271688,0.1872,4354.1,4354.0,0.8418]
[1757416272091,0.3744,4354.1,4354.0,0.8418]
[1757416275191,0.4909,4354.1,4354.0,0.6333]
[1757416275380,0.3744,4354.1,4354.0,0.6333]
[1757416275892,0.3744,4354.1,4354.0,0.8418]
[1757416278485,3.2078,4354.6,4354.5,0.1263]
[1757416278691,4.19035332,4354.6,4354.5,0.4326]
[1757416279993,4.19035332,4354.6,4354.5,0.3063]
[1757416281990,4.19035332,4354.6,4354.5,0.5027]
[1757416282192,4.19035332,4354.6,4354.5,0.629]
[1757416282984,4.07405332,4354.6,4354.5,0.629]
[1757416284094,4.07405332,4354.6,4354.5,0.8336]
[1757416284690,4.19035332,4354.6,4354.5,0.3063]
[1757416285689,4.19035332,4354.6,4354.5,0.4326]
[1757416286399,4.19182531,4354.6,4354.5,0.629]
[1757416287497,4.07552531,4354.6,4354.5,0.8336]
[1757416287696,3.70442531,4354.6,4354.5,0.8336]
[1757416289292,4.11276623,4357.3,4355.4,0.401]
[1757416289293,0.2958,4355.5,4355.4,0.401]
[1757416289596,0.8375,4355.5,4355.4,0.1964]
[1757416290288,0.7168,4355.5,4355.4,0.7073]
[1757416290694,0.8375,4355.5,4355.4,0.7073]
[1757416293197,0.5041,4355.5,4355.4,0.7073]
[1757416293397,0.2958,4355.8,4355.5,0.3063]
[1757416293599,0.5041,4355.6,4355.5,0.7073]
[1757416294100,0.8375,4356.0,4355.9,0.5027]
[1757416297102,0.8375,4356.0,4355.9,0.1964]
[1757416298206,0.8375,4356.0,4355.1,0.3063]
[1757416298397,0.5041,4355.2,4355.1,0.7073]
[1757416298802,0.7168,4355.2,4355.1,0.7073]
[1757416300306,0.421,4354.7,4354.6,0.5027]
[1757416300512,0.7168,4354.7,4354.6,0.7073]
[1757416300710,3.2078,4355.2,4354.7,0.3063]
[1757416301111,3.6288,4355.2,4355.1,0.5027]
[1757416301410,4.1233409,4355.2,4355.1,0.5027]
[1757416302909,4.3876409,4355.2,4355.1,0.5027]
[1757416303406,0.9155409,4355.2,4355.1,0.7073]
[1757416304814,1.1800409,4355.2,4355.1,0.7073]
[1757416305315,4.3878409,4355.2,4354.6,0.3063]
[1757416305511,0.421,4354.2,4354.1,3.7105]
[1757416305707,0.6855,4354.2,4354.1,0.5027]
[1757416306414,0.421,4354.2,4354.1,0.7073]
[1757416307913,0.2083,4354.2,4354.1,0.7073]
[1757416308316,0.4139,4354.2,4354.1,0.7073]
[1757416310614,0.6776,4354.2,4354.1,0.7073]
[1757416311418,0.4139,4354.2,4354.1,0.7073]
[1757416312014,0.6776,4354.2,4354.1,0.7073]
[1757416312617,0.4139,4354.2,4354.1,0.7073]
[1757416313413,0.2083,4354.2,4354.1,0.7073]
[1757416313815,3.2078,4354.4,4354.1,0.7073]
[1757416313816,3.2078,4354.4,4354.2,0.2975]
[1757416314016,3.4072,4354.9,4354.8,0.7181]
[1757416314221,3.90221975,4354.9,4354.8,0.7181]
[1757416314417,4.10781975,4354.9,4354.8,0.7181]
[1757416316422,4.37151975,4354.9,4354.8,0.5121]
[1757416316625,4.37151975,4354.9,4354.8,0.2975]
[1757416317118,4.37151975,4354.9,4354.8,0.5121]
[1757416317927,4.10781975,4354.9,4354.8,0.7181]
[1757416318227,4.37151975,4354.9,4354.8,0.7181]
[1757416321424,4.37180314,4354.9,4354.8,0.7181]
[1757416322626,0.49530314,4354.9,4354.8,4.7181]
[1757416322924,1.23478291,4355.9,4355.0,0.1287]
[1757416323125,1.99383274,4355.9,4355.1,0.2975]
[1757416323320,1.99383274,4355.9,4355.0,0.1287]
[1757416323321,0.90034983,4355.8,4355.7,0.2146]
[1757416323631,1.16404983,4355.8,4355.7,0.5121]
[1757416324930,1.16404983,4355.8,4355.7,0.2975]
[1757416325126,2.39883274,4355.8,4355.7,0.2975]
[1757416325327,2.13513274,4355.8,4355.5,0.4262]
[1757416325527,0.6687,4355.6,4355.5,0.4262]
[1757416325733,1.16404983,4355.6,4355.5,0.4262]
[1757416326232,1.16404983,4355.6,4355.5,0.2975]
[1757416327627,1.16404983,4355.6,4355.0,0.1287]
[1757416327832,0.1994,4355.1,4355.0,0.8468]
[1757416328032,0.90034983,4355.1,4355.0,0.8468]
[1757416328426,0.69474983,4355.1,4355.0,0.8468]
[1757416329528,1.16404983,4355.1,4354.5,0.1287]
[1757416329742,0.6687,4354.7,4354.6,0.5121]
[1757416329938,1.16404983,4354.7,4354.6,0.5121]
[1757416331044,0.90034983,4354.7,4354.6,0.7181]
[1757416333238,0.49534983,4354.7,4354.6,0.7181]
[1757416333536,0.90111325,4355.1,4355.0,0.3433]
[1757416333738,0.90111325,4355.1,4355.0,0.6408]
[1757416333939,1.16481325,4355.1,4355.0,0.2975]
[1757416335640,0.6687,4354.6,4354.5,0.2975]
[1757416335840,1.16481325,4354.6,4354.5,0.2975]
[1757416336136,1.16481325,4354.6,4354.5,0.5121]
[1757416336742,0.90111325,4354.6,4354.5,0.8386]
[1757416338546,1.16521325,4354.6,4354.0,0.1288]
[1757416338844,0.6708,4354.1,4354.0,0.3441]
[1757416339034,0.90281325,4354.1,4354.0,0.5427]
[1757416339239,0.90281325,4354.1,4354.0,0.8421]
[1757416339439,0.69391325,4354.1,4354.0,0.8421]
[1757416339846,0.49611325,4354.1,4354.0,0.8421]
[1757416341845,0.69391325,4354.1,4354.0,0.8421]
[1757416342045,0.90281325,4354.1,4354.0,0.8421]
[1757416342447,0.69391325,4354.1,4354.0,0.8421]
[1757416343650,0.90281325,4354.1,4354.0,0.8421]
[1757416349560,0.49611325,4354.1,4354.0,0.8421]
[1757416349757,3.2078,4354.3,4354.0,0.5427]
[1757416349957,0.49587135,4354.2,4354.1,0.7133]
[1757416354469,0.1978,4354.6,4354.5,0.5418]
[1757416354665,0.69383975,4354.6,4354.5,0.8412]
[1757416354866,0.90273975,4354.6,4354.5,0.8412]
[1757416358274,1.16683975,4354.6,4354.5,0.2994]
[1757416360975,1.16683975,4354.6,4354.0,0.1288]
[1757416361275,0.6708,4354.1,4354.0,0.3441]
[1757416361474,1.16683975,4354.1,4354.0,0.3441]
[1757416361675,1.16683975,4354.1,4354.0,0.6435]
[1757416362276,0.90273975,4354.1,4354.0,0.8421]
[1757416363580,0.69383975,4354.1,4354.0,0.8421]
[1757416364077,0.49603975,4354.1,4354.0,0.8421]
[1757416364277,0.49603975,4354.2,4354.0,0.5427]
[1757416364977,0.49603975,4354.2,4354.1,0.7133]
[1757416368185,0.70723975,4354.2,4354.1,0.7133]
[1757416370082,1.17473975,4354.2,4353.6,0.3149]
[1757416370288,3.8865,4353.7,4353.6,0.3149]
[1757416370583,4.38253975,4353.7,4353.6,0.515]
[1757416372176,4.38253975,4353.7,4353.1,0.3149]
[1757416372377,0.2112,4353.2,4353.1,0.7122]
[1757416372582,0.70723975,4353.2,4353.1,0.7122]
[1757416373789,0.49603975,4353.2,4353.1,0.7122]
[1757416374190,0.6787,4353.6,4353.5,0.6441]
[1757416374494,1.17507942,4353.6,4353.5,0.6441]
[1757416375894,1.17507942,4353.6,4353.5,0.8413]
[1757416376089,0.91097942,4353.6,4353.5,0.8413]
[1757416381200,1.17507942,4353.6,4353.5,0.8413]
[1757416381798,0.91097942,4353.6,4353.5,0.8413]
[1757416385010,0.49637942,4353.6,4353.5,0.8413]
[1757416387610,3.6224,4354.6,4354.5,0.2001]
[1757416387912,4.1184981,4354.6,4354.5,0.8413]
[1757416388413,4.3825981,4354.6,4354.5,0.8413]
[1757416388806,3.7038981,4354.6,4354.5,0.8413]
[1757416390613,3.9150981,4354.6,4354.5,0.8413]
[1757416391402,4.1184981,4354.6,4354.5,0.8413]
[1757416391715,4.3825981,4354.6,4354.5,0.3149]
[1757416392213,4.1184981,4354.6,4354.5,0.6441]
[1757416392408,4.3825981,4354.6,4354.5,0.6441]
[1757416393103,4.3825981,4354.6,4354.5,0.8413]
[1757416393308,4.1184981,4354.6,4354.5,0.8413]
[1757416398510,4.3825981,4354.6,4354.5,0.8413]
[1757416401421,4.3825981,4354.6,4354.5,0.6441]
[1757416403616,4.3825981,4354.6,4354.0,0.1291]
[1757416403819,0.4091,4354.2,4353.5,0.1291]
[1757416404020,0.6732,4353.7,4353.6,0.4881]
[1757416404420,0.6732,4353.7,4353.3,3.2078]
[1757416404421,1.16922739,4353.7,4353.3,3.2078]
[1757416404617,0.6732,4353.5,4353.4,0.2937]
[1757416404820,1.16922739,4353.5,4353.4,0.2937]
[1757416406321,0.6732,4353.5,4353.4,0.2937]
[1757416406515,1.16933026,4353.5,4353.4,0.2937]
[1757416407219,1.16933026,4353.5,4353.4,0.4881]
[1757416407415,0.90523026,4353.5,4353.4,0.6982]
[1757416415724,1.16933026,4353.5,4353.4,0.6982]
[1757416415925,0.90523026,4353.5,4353.2,3.5015]
[1757416416229,0.6732,4353.3,4353.2,3.5015]
[1757416416425,1.16933026,4353.3,4353.2,3.5015]
[1757416417325,1.16951246,4353.3,4353.2,3.6959]
[1757416417530,0.6732,4353.3,4353.2,3.6959]
[1757416419125,0.4091,4353.3,4353.2,3.906]
[1757416423232,0.1962,4353.3,4353.2,3.906]
[1757416423429,3.404,4353.9,4353.8,0.1944]
[1757416423623,4.11320824,4353.9,4353.8,0.6982]
[1757416424536,3.90030824,4353.9,4353.8,0.6982]
[1757416424737,4.11320824,4353.9,4353.8,0.6982]
[1757416428341,4.37740824,4353.9,4353.8,0.6982]
[1757416428634,4.37740824,4353.9,4353.8,0.4881]
[1757416428834,4.37740824,4353.9,4353.8,0.2937]
[1757416429341,4.37740824,4353.9,4353.6,0.3221]
[1757416429541,0.6745,4353.7,4353.6,0.3221]
[1757416429841,1.17080824,4353.7,4353.6,0.3221]
[1757416430240,1.17080824,4353.7,4353.6,0.5175]
[1757416437750,1.17080824,4353.7,4353.6,0.3221]
[1757416438451,1.17080824,4353.7,4353.6,0.5175]
[1757416440153,1.1718616,4353.7,4353.6,0.5175]
[1757416440960,0.9076616,4353.7,4353.6,0.7191]
[1757416441756,0.4973616,4353.7,4353.6,0.7191]
[1757416442149,0.4973616,4353.7,4353.6,4.7191]
[1757416442353,3.2078,4354.7,4354.6,0.7191]
[1757416442557,3.4055,4354.7,4354.6,0.7191]
[1757416443149,3.2078,4354.7,4354.6,0.7191]
[1757416447166,3.4055,4354.7,4354.6,0.7191]
[1757416447661,3.8823,4354.7,4354.6,0.7191]
[1757416447956,3.8823,4354.7,4354.6,0.3221]
[1757416448158,3.8823,4354.7,4354.1,0.3221]
[1757416454264,0.49366738,4354.6,4354.1,0.3221]
[1757416454562,0.2642,4354.1,4354.0,0.1256]
[1757416454757,0.6745,4354.1,4354.0,0.321]
[1757416454967,0.1745,4354.1,4354.0,0.6431]
[1757416455169,3.2078,4354.7,4354.0,0.6431]
[1757416455364,0.49368324,4354.6,4354.5,0.4477]
[1757416466268,4.72332324,4354.6,4354.3,0.3046]
[1757416466571,6.36972047,4354.5,4354.1,0.3046]
[1757416466772,3.2078,4354.2,4354.1,0.3046]
[1757416466971,3.70148324,4354.2,4354.1,0.3046]
[1757416481480,4.93981189,4354.2,4354.0,0.1256]
[1757416481676,0.49368324,4354.1,4354.0,0.1256]
[1757416481877,0.49368324,4354.1,4353.8,0.3046]
[1757416482082,0.49368324,4354.1,4353.6,0.3046]
[1757416482383,3.2078,4353.7,4353.6,0.3046]
[1757416482580,3.70148324,4353.7,4353.6,0.3046]
[1757416484388,3.70148324,4353.7,4353.6,0.5091]
[1757416488783,3.70148324,4353.7,4353.6,0.7114]
[1757416490185,0.49368324,4353.7,4353.6,0.7114]
[1757416490386,3.70148324,4353.7,4353.6,0.7114]
[1757416490681,3.70187974,4353.7,4353.6,0.7114]
[1757416495188,3.70187974,4353.7,4353.6,0.3046]
[1757416500793,3.70187974,4353.7,4353.6,0.5009]
[1757416503790,3.70187974,4353.7,4353.6,0.7032]
[1757416514907,3.70187974,4353.7,4353.6,0.3046]
[1757416521009,3.70187974,4353.7,4353.5,0.1256]
[1757416521211,0.49407974,4353.6,4353.3,0.3111]
[1757416521410,0.72377975,4353.6,4353.3,0.3111]
[1757416521710,0.49407974,4353.5,4353.0,0.1287]
[1757416521910,3.2078,4353.1,4353.0,0.4398]
[1757416522099,3.70187974,4353.1,4353.0,0.4398]
[1757416525816,4.94241462,4353.1,4352.5,0.1245]
[1757416526018,3.2078,4352.6,4352.5,0.1245]
[1757416526308,3.70249531,4352.6,4352.5,0.6354]
[1757416526515,3.70249531,4352.6,4352.5,0.8465]
[1757416535612,3.70249531,4352.6,4352.5,4.8465]
[1757416537722,3.2078,4352.6,4352.5,4.8465]
[1757416539525,3.2078,4352.6,4352.5,0.8465]
[1757416539725,3.2078,4353.1,4353.0,0.8485]
[1757416540026,3.2078,4353.7,4353.6,0.722]
[1757416540325,3.70185539,4353.7,4353.6,0.722]
[1757416542225,3.70185539,4353.7,4353.6,0.5109]
[1757416545029,3.70185539,4353.7,4353.6,0.3111]
[1757416545530,3.70185539,4353.7,4353.0,0.1265]
[1757416545828,0.49405539,4353.6,4353.1,0.3111]
[1757416546028,0.49405539,4353.6,4353.5,0.1265]
[1757416546227,0.49405539,4353.6,4353.5,0.4376]
[1757416553539,0.49405539,4353.6,4353.5,0.6438]
[1757416560535,0.5668,4353.1,4352.5,0.1245]
[1757416560742,0.2159,4352.6,4352.5,0.3307]
[1757416560934,0.70995539,4352.6,4352.5,0.5383]
[1757416561241,0.90755539,4352.6,4352.5,0.5383]
[1757416562231,0.70995539,4352.6,4352.5,0.5383]
[1757416562432,0.49405539,4352.6,4352.5,0.5383]
[1757416562637,0.49405539,4352.7,4352.5,0.8533]
[1757416562841,3.37775539,4352.7,4352.6,0.7288]
[1757416563143,3.2078,4352.7,4352.6,0.7288]
[1757416564536,0.3241,4353.5,4353.2,0.7288]
[1757416564537,3.4237,4353.3,4353.2,0.7288]
[1757416565231,3.7478,4353.3,4353.2,0.7288]
[1757416568244,3.9454,4353.3,4353.2,0.5212]
[1757416568443,3.9454,4353.3,4352.6,0.315]
[1757416568645,3.4054,4352.8,4352.7,0.4138]
[1757416568843,3.9454,4352.8,4352.7,0.7288]
[1757416569449,3.6213,4352.8,4352.7,0.7288]
[1757416569648,3.2078,4352.8,4352.7,0.7288]
[1757416572042,3.4237,4352.8,4352.7,0.7288]
[1757416572242,3.2078,4352.8,4352.7,0.7288]
[1757416573347,0.54,4353.1,4353.0,0.85]
[1757416573547,0.7376,4353.1,4353.0,0.85]
[1757416573743,0.7376,4353.1,4353.0,0.7288]
[1757416574846,1.23090157,4353.1,4353.0,0.7288]
[1757416576345,0.4135,4352.6,4352.5,0.8615]
[1757416576549,0.7209,4352.6,4352.5,0.8615]
[1757416576846,0.90680157,4352.6,4352.5,0.8615]
[1757416577440,0.70920157,4352.6,4352.5,0.8615]
[1757416577641,0.49330157,4352.6,4352.5,0.8615]
[1757416577843,0.49330157,4353.2,4352.5,0.8615]
[1757416578050,0.69210157,4353.1,4353.0,0.8494]
[1757416579652,0.99950157,4353.1,4353.0,0.8494]
[1757416579951,1.19690157,4353.1,4353.0,0.8494]
[1757416585947,0.3074,4352.9,4352.6,0.3232]
[1757416586154,0.7036,4352.7,4352.6,0.5206]
[1757416586342,1.19690157,4352.7,4352.6,0.5206]
[1757416586548,1.19690157,4352.7,4352.6,0.7236]
[1757416586854,0.99950157,4352.7,4352.6,0.4004]
[1757416587055,1.19690157,4352.7,4352.6,0.7236]
[1757416587949,0.88950157,4352.7,4352.6,0.7236]
[1757416588157,0.69210157,4352.7,4352.6,0.7236]
[1757416590355,0.49330157,4352.7,4352.3,3.2078]
[1757416590655,0.1988,4352.8,4352.7,0.7236]
[1757416590854,0.69225832,4352.8,4352.7,0.7236]
[1757416593061,1.19705832,4352.8,4352.7,0.7236]
[1757416593857,1.19705832,4352.8,4352.7,0.5206]
[1757416594059,0.88965832,4352.8,4352.4,0.3232]
[1757416594258,0.3962,4352.4,4352.3,3.9314]
[1757416595259,0.1988,4352.4,4352.3,3.9314]
[1757416595859,0.1193,4353.0,4352.3,3.6082]
[1757416596160,1.19731462,4352.9,4352.8,0.5206]
[1757416598663,1.19731462,4352.9,4352.8,0.3232]
[1757416598962,0.3962,4352.5,4352.4,0.7236]
[1757416599261,0.7036,4352.5,4352.4,0.7236]
[1757416599460,1.19731462,4352.5,4352.4,0.7236]
[1757416600457,1.19731462,4352.5,4352.2,0.00344274]
[1757416600458,1.31661462,4352.5,4352.2,0.00344274]
[1757416600661,0.7036,4352.3,4352.2,0.00344274]
[1757416600861,1.19731462,4352.3,4352.2,0.00344274]
[1757416601162,2.4378495,4352.3,4351.5,0.3232]
[1757416601461,3.9114,4351.6,4351.5,0.5206]
[1757416601658,4.40511462,4351.6,4351.5,0.5206]
[1757416602161,4.09771462,4351.6,4351.2,0.3232]
[1757416602362,0.7036,4351.3,4351.2,0.5206]
[1757416605357,0.7036,4351.3,4350.6,3.2078]
[1757416605560,0.7036,4350.7,4350.6,3.6082]
[1757416606063,0.7036,4350.7,4350.6,3.9314]
[1757416607960,0.1988,4350.7,4350.6,3.9314]
[1757416608260,0.2941,4351.0,4350.7,0.322]
[1757416608461,0.5,4351.0,4350.9,0.4249]
[1757416608652,0.7022,4351.0,4350.9,0.7469]
[1757416612466,0.7022,4351.0,4350.9,0.322]
[1757416612663,0.7022,4351.0,4350.6,3.2078]
[1757416612664,0.8212,4351.0,4350.7,0.322]
[1757416612864,0.7022,4350.8,4350.7,0.322]
[1757416613368,0.7022,4350.8,4350.7,0.5313]
[1757416614363,0.7022,4350.8,4350.7,0.7469]
[1757416619660,0.2941,4350.7,4350.1,0.322]
[1757416619866,0.2059,4350.2,4350.1,0.7469]
[1757416620272,0.7022,4350.2,4350.1,0.7469]
[1757416622473,0.4081,4350.2,4350.1,0.7469]
[1757416622674,0.2941,4350.9,4350.2,0.322]
[1757416622872,0.69738787,4350.8,4350.7,0.4249]
[1757416623078,0.99148787,4350.8,4350.7,0.7469]
[1757416623270,3.2078,4351.0,4350.8,0.322]
[1757416623574,3.2078,4351.0,4350.9,0.7469]
[1757416624479,3.4137,4351.0,4350.9,0.7469]
[1757416624776,3.91,4351.0,4350.9,0.5313]
[1757416625763,3.91,4351.0,4350.9,0.7469]
[1757416626183,3.91,4351.0,4350.9,0.322]
[1757416626381,3.6159,4351.0,4350.9,0.2093]
[1757416626588,4.40194458,4351.0,4350.9,0.5313]
[1757416627180,4.52094458,4351.0,4350.5,0.1296]
[1757416627387,0.2941,4350.8,4350.3,0.322]
[1757416627588,0.7022,4350.4,4350.3,0.322]
[1757416627789,0.7022,4350.4,4350.3,0.5313]
[1757416628589,0.7022,4350.4,4350.1,0.322]
[1757416628886,0.4081,4349.8,4349.7,0.7469]
[1757416629086,0.2941,4349.7,4349.6,3.2078]
[1757416629286,0.2059,4349.3,4349.2,0.7469]
[1757416629789,0.5,4349.3,4349.2,0.7469]
[1757416630187,0.7022,4349.3,4349.2,0.7469]
[1757416630987,0.4081,4349.3,4349.2,0.7469]
[1757416631389,0.2059,4349.3,4349.2,0.7469]
[1757416631784,0.2059,4349.6,4349.5,0.5545]
[1757416631980,0.2059,4349.6,4349.5,0.8765]
[1757416635292,0.4081,4349.3,4349.2,0.2093]
[1757416635493,0.7022,4349.3,4349.2,0.7469]
[1757416636989,0.4081,4349.3,4349.2,0.7469]
[1757416637391,3.2078,4349.9,4349.2,0.7469]
[1757416637598,0.5331,4349.8,4349.7,0.7118]
[1757416638295,0.7317,4349.8,4349.7,0.7118]